fUST/lending_fUST_20250606
["ID","MTS","AMOUNT","RATE_DAILY","PERIOD"]
[364664443,1749190236767,-151.0,0.00024367,7]
[364664444,1749190236777,-151.0,0.00024367,7]
[364664445,1749190236786,-151.0,0.00024367,7]
[364664446,1749190236796,-151.0,0.00024367,7]
[364664447,1749190236806,-151.0,0.00024367,7]
[364664448,1749190236815,-296.429636,0.00024367,7]
[364664449,1749190236827,-160.0,0.00024367,3]
[364664450,1749190236836,-833.33,0.00024369,2]
[364664451,1749190236846,-315.04936747,0.0002437,10]
[364664452,1749190236857,-581.33096552,0.0002437,10]
[364664453,1749190236935,-12095.85822176,0.0002437,10]
[364664454,1749190236946,-500.90295365,0.00024373,2]
[364664455,1749190236958,-508.12557939,0.00024373,2]
[364664456,1749190236968,-500.0,0.00024373,2]
[364664457,1749190236978,-500.88020966,0.00024373,2]
[364664458,1749190236988,-500.0,0.00024373,2]
[364664459,1749190236998,-479.41907091,0.00024373,2]
[364664460,1749190237008,-501.59134765,0.00024373,2]
[364664461,1749190237017,-500.0,0.00024373,2]
[364664462,1749190237027,-506.32928063,0.00024373,2]
[364664463,1749190237036,-600.0,0.00024373,2]
[364664464,1749190237046,-502.95706129,0.00024373,2]
[364664465,1749190237055,-501.35583808,0.00024373,2]
[364664466,1749190237065,-503.44880337,0.00024373,2]
[364664467,1749190237075,-440.0,0.00024373,2]
[364664468,1749190237084,-440.0,0.00024373,2]
[364664469,1749190237094,-647.07,0.00024374,2]
[364664470,1749190237106,-154.710064,0.00024376,7]
[364664471,1749190237117,-200.982712,0.00024376,7]
[364664472,1749190237127,-833.33,0.00024376,2]
[364664473,1749190237137,-833.33,0.00024376,2]
[364664474,1749190237147,-833.33,0.00024376,2]
[364664475,1749190237156,-833.33,0.00024376,2]
[364664476,1749190237166,-833.33,0.00024376,2]
[364664477,1749190237176,-833.33,0.00024376,2]
[364664478,1749190237188,-833.33,0.00024376,2]
[364664479,1749190237198,-833.33,0.00024376,2]
[364664480,1749190237208,-833.33,0.00024376,2]
[364664481,1749190237218,-833.33,0.00024376,2]
[364664482,1749190237227,-833.33,0.00024376,2]
[364664483,1749190237237,-833.33,0.00024376,2]
[364664484,1749190237247,-833.41,0.00024376,2]
[364664485,1749190237260,-336116.20150086,0.00024377,20]
[364664486,1749190237269,-125020.82558675,0.00024377,20]
[364664487,1749190237281,-1074.74166481,0.00024377,20]
[364664537,1749190238523,-328.61207041,0.00022459,2]
[364664538,1749190238533,-500.0,0.00022459,2]
[364664540,1749190238544,-624.66053478,0.00022459,2]
[364664542,1749190238554,-114.64004596,0.00022459,2]
[364664543,1749190238566,-385.35995404,0.00022459,2]
[364664544,1749190238576,-267.3007474,0.00022459,2]
[364664545,1749190238588,-357.35978738,0.00022459,2]
[364664546,1749190238598,-67.08319993,0.00022459,2]
[364664547,1749190238610,-432.91680007,0.00022459,2]
[364664548,1749190238619,-500.0,0.00022459,2]
[364664549,1749190238629,-624.66053478,0.00022459,2]
[364664550,1749190238638,-500.0,0.00022459,2]
[364664551,1749190238648,-513.2147526,0.00022459,2]
[364664552,1749190238657,-500.0,0.00022459,2]
[364664553,1749190238667,-624.66053478,0.00022459,2]
[364664554,1749190238676,-500.0,0.00022459,2]
[364664555,1749190238687,-500.0,0.00022459,2]
[364664556,1749190238696,-500.0,0.00022459,2]
[364664557,1749190238706,-624.66053478,0.00022459,2]
[364664558,1749190238715,-500.0,0.00022459,2]
[364664559,1749190238726,-624.66053478,0.00022459,2]
[364664560,1749190238737,-500.0,0.00022459,2]
[364664561,1749190238747,-500.0,0.00022459,2]
[364664562,1749190238758,-500.0,0.00022459,2]
[364664563,1749190238768,-624.66053478,0.00022459,2]
[364664564,1749190238778,-500.0,0.00022459,2]
[364664565,1749190238789,-624.66053478,0.00022459,2]
[364664566,1749190238798,-500.0,0.00022459,2]
[364664567,1749190238808,-500.0,0.00022459,2]
[364664568,1749190238818,-624.66053478,0.00022459,2]
[364664569,1749190238829,-500.0,0.00022459,2]
[364664570,1749190238839,-624.66053478,0.00022459,2]
[364664571,1749190238848,-500.0,0.00022459,2]
[364664572,1749190238858,-500.0,0.00022459,2]
[364664573,1749190238868,-500.0,0.00022459,2]
[364664574,1749190238878,-500.0,0.00022459,2]
[364664575,1749190238888,-500.0,0.00022459,2]
[364664576,1749190238898,-624.66053478,0.00022459,2]
[364664577,1749190238907,-624.66053478,0.00022459,2]
[364664578,1749190238917,-500.0,0.00022459,2]
[364664579,1749190238927,-624.66053478,0.00022459,2]
[364664580,1749190238938,-500.0,0.00022459,2]
[364664581,1749190238947,-624.66053478,0.00022459,2]
[364664582,1749190238957,-624.66053478,0.00022459,2]
[364664583,1749190238967,-500.0,0.00022459,2]
[364664584,1749190238977,-624.66053478,0.00022459,2]
[364664585,1749190238987,-500.0,0.00022459,2]
[364664586,1749190238997,-624.66053478,0.00022459,2]
[364664587,1749190239007,-624.66053478,0.00022459,2]
[364664588,1749190239018,-624.66053478,0.00022459,2]
[364664589,1749190239028,-624.66053478,0.00022459,2]
[364664590,1749190239037,-624.66053478,0.00022459,2]
[364664591,1749190239047,-624.66053478,0.00022459,2]
[364664592,1749190239057,-624.66053478,0.00022459,2]
[364664593,1749190239067,-624.66053478,0.00022459,2]
[364664594,1749190239077,-624.66053478,0.00022459,2]
[364664595,1749190239086,-624.66053478,0.00022459,2]
[364664596,1749190239097,-624.66053478,0.00022459,2]
[364664597,1749190239110,-624.66053478,0.00022459,2]
[364664598,1749190239119,-624.66053478,0.00022459,2]
[364664599,1749190239130,-624.66053478,0.00022459,2]
[364664600,1749190239140,-624.66053478,0.00022459,2]
[364664601,1749190239150,-624.66053478,0.00022459,2]
[364664602,1749190239160,-624.66053478,0.00022459,2]
[364664603,1749190239169,-624.66053478,0.00022459,2]
[364664604,1749190239178,-624.66053478,0.00022459,2]
[364664605,1749190239190,-624.66053478,0.00022459,2]
[364664606,1749190239200,-624.66053478,0.00022459,2]
[364664607,1749190239209,-624.66053478,0.00022459,2]
[364664608,1749190239219,-624.66053478,0.00022459,2]
[364664609,1749190239228,-624.66053478,0.00022459,2]
[364664610,1749190239237,-624.66053478,0.00022459,2]
[364664611,1749190239246,-624.66053478,0.00022459,2]
[364664612,1749190239255,-624.66053478,0.00022459,2]
[364664613,1749190239264,-624.66053478,0.00022459,2]
[364664614,1749190239273,-624.66053478,0.00022459,2]
[364664615,1749190239282,-154.84780573,0.00024374,2]
[364664616,1749190239291,-12660.61764606,0.00024377,20]
[364664617,1749190239303,-65385.76102112,0.00024377,20]
[364664618,1749190239315,-4164.42490134,0.00024377,20]
[364664619,1749190239327,-12767.32325452,0.00024377,20]
[364664620,1749190239338,-432286.79980719,0.00024377,20]
[364664621,1749190239349,-33822.89018173,0.00024377,20]
[364664622,1749190239361,-767.5339905,0.00024377,20]
[364664647,1749190240853,-440.0,0.0002246,2]
[364664648,1749190240863,-440.0,0.00022734,2]
[364664649,1749190240872,-5861.60999995,0.00024377,20]
[364664650,1749190240911,-770.67,0.00024377,20]
[364664702,1749190245732,-11194.45378137,0.00024377,20]
[364664782,1749190246752,-12392.98094382,0.00024377,20]
[364664784,1749190246765,-127433.46206268,0.00024377,20]
[364664788,1749190246811,-272.19120742,0.00024377,20]
[364664799,1749190516804,2500.0,0.00024,120]
[364664801,1749190542141,317.86563634,0.00024657,120]
[364664827,1749191138100,-150.0,0.00020442,2]
[364664828,1749191138122,-169.85945225,0.0002178,2]
[364664829,1749191138145,-272.91964162,0.00022277,2]
[364664830,1749191138167,-150.0,0.000223,2]
[364664831,1749191138188,-212.976918,0.00022454,2]
[364664832,1749191138210,-160.0,0.00022454,2]
[364664833,1749191138235,-440.0,0.00022454,2]
[364664834,1749191138258,-300.4696436,0.00022454,2]
[364664835,1749191138282,-440.0,0.00022454,2]
[364664836,1749191138303,-842.5625,0.00022454,2]
[364664837,1749191138328,-440.0,0.00022455,2]
[364664838,1749191138352,-300.0,0.00022456,2]
[364664839,1749191138377,-70.75386593,0.00022457,2]
[364664841,1749191219767,280.329437,0.00013699,2]
[364664842,1749191235094,-280.329437,0.00020187,2]
[364664843,1749191235115,-88.20279448,0.00021185,2]
[364664844,1749191240080,-61.79720552,0.00021185,2]
[364664845,1749191240101,-119.3432055,0.000219,2]
[364664846,1749191240129,-62.60322225,0.000219,2]
[364664847,1749191240150,-181.408966,0.00022212,2]
[364664848,1749191240180,-291.39901261,0.00022454,2]
[364664849,1749191241271,-118.60098739,0.00022454,2]
[364664850,1749191241305,-160.0,0.00022457,2]
[364664851,1749191241328,-160.0,0.00022457,2]
[364664852,1749191241350,-229.52673067,0.00022457,2]
[364664853,1749191241372,-1429.45403235,0.00022457,2]
[364664854,1749191241395,-415.0,0.0002246,2]
[364664855,1749191241419,-64.87642727,0.00022584,2]
[364664856,1749191243088,-461.43912134,0.00022584,2]
[364664857,1749191244149,-392.96690799,0.00022584,2]
[364664858,1749191244175,-359.45376299,0.00022728,2]
[364664859,1749191249093,-369.93611026,0.00022457,2]
[364664860,1749191249118,-80.54623701,0.00022728,2]
[364664861,1749191249143,-440.0,0.00023002,2]
[364664862,1749191249168,-207.4,0.00023055,2]
[364664863,1749191249197,-440.0,0.00023276,2]
[364664864,1749191249219,-382.5086556,0.00023377,2]
[364664865,1749191249243,-440.0,0.0002355,2]
[364664866,1749191249267,-440.0,0.00023824,2]
[364664867,1749191249288,-258.974774,0.00023888,3]
[364664868,1749191249319,-211.57753998,0.000239,10]
[364664869,1749191249348,-211.57753998,0.00023967,10]
[364664870,1749191249371,-300.0,0.00024017,2]
[364664871,1749191249392,-440.0,0.00024018,2]
[364664872,1749191249419,-440.0,0.00024018,2]
[364664873,1749191249445,-440.0,0.00024018,2]
[364664874,1749191249470,-154.88,0.00024018,2]
[364664875,1749191249496,-440.0,0.00024018,2]
[364664876,1749191249517,-16000.0,0.00024019,2]
[364664877,1749191249538,-5134.68311702,0.00024019,2]
[364664943,1749191438553,-219.0,0.0002,2]
[364664944,1749191438566,-150.0,0.00020442,2]
[364664945,1749191438576,-150.0,0.00021919,2]
[364664946,1749191438587,-19640.93363483,0.00022,24]
[364664947,1749191438598,-150.0,0.00022301,2]
[364664948,1749191438609,-301.616916,0.0002263,2]
[364664949,1749191438618,-211.57753998,0.000229,8]
[364664950,1749191438629,-211.57753998,0.00023054,8]
[364664951,1749191438639,-211.57753998,0.00023208,8]
[364664952,1749191438649,-211.57753998,0.00023362,9]
[364664953,1749191438659,-151.27876052,0.000235,14]
[364664954,1749191438668,-211.57753998,0.00023515,9]
[364664955,1749191438678,-211.57753998,0.00023669,9]
[364664956,1749191438688,-211.57753998,0.00023823,10]
[364664957,1749191438698,-233.077296,0.00023888,3]
[364664958,1749191438708,-211.57753998,0.00023977,10]
[364664959,1749191438718,-207.4,0.00024004,2]
[364664960,1749191438728,-440.0,0.00024018,2]
[364664961,1749191438738,-440.0,0.00024018,2]
[364664962,1749191438749,-440.0,0.00024018,2]
[364664963,1749191438759,-440.0,0.00024018,2]
[364664964,1749191438768,-440.0,0.00024018,2]
[364664965,1749191438778,-842.5625,0.00024018,2]
[364664966,1749191438788,-155.0,0.00024019,2]
[364664967,1749191438798,-440.0,0.00024033,2]
[364664968,1749191438808,-328.062289,0.00024033,2]
[364664969,1749191438817,-440.0,0.00024033,2]
[364664970,1749191438827,-440.0,0.00024098,2]
[364664971,1749191438837,-440.0,0.00024098,2]
[364664972,1749191438849,-211.57753998,0.00024131,10]
[364664973,1749191438858,-159.03433246,0.000242,2]
[364664974,1749191438868,-211.57753998,0.00024285,10]
[364664975,1749191438879,-440.0,0.00024292,2]
[364664976,1749191438888,-440.0,0.00024292,2]
[364664977,1749191438898,-440.0,0.00024292,2]
[364664978,1749191438907,-440.0,0.00024292,2]
[364664979,1749191438917,-440.0,0.00024292,2]
[364664980,1749191438927,-812.86,0.000243,2]
[364664981,1749191438936,-2000.0,0.000243,2]
[364664982,1749191438947,-440.0,0.00024307,2]
[364664983,1749191438957,-157.15,0.00024307,6]
[364664984,1749191438966,-440.0,0.00024307,2]
[364664985,1749191438977,-695.849,0.00024339,2]
[364664986,1749191438986,-423.052,0.00024339,2]
[364664987,1749191439135,-405.0,0.00024339,2]
[364664988,1749191439145,-16000.0,0.00024367,2]
[364664989,1749191439155,-7291.65826633,0.00024367,2]
[364664990,1749191439164,-592.06800782,0.00024368,2]
[364664991,1749191439174,-500.0,0.00024368,2]
[364664992,1749191439183,-500.0,0.00024368,2]
[364664993,1749191439193,-500.0,0.00024368,2]
[364664994,1749191439202,-500.0,0.00024368,2]
[364664995,1749191439212,-500.0,0.00024368,2]
[364664996,1749191439222,-223.69052807,0.00024368,2]
[364664997,1749191439232,-500.0,0.00024368,2]
[364664998,1749191439242,-500.0,0.00024368,2]
[364664999,1749191439252,-406.03121913,0.00024368,2]
[364665000,1749191439261,-500.0,0.00024368,2]
[364665001,1749191439271,-500.0,0.00024368,2]
[364665002,1749191439281,-500.0,0.00024368,2]
[364665003,1749191439292,-500.0,0.00024368,2]
[364665004,1749191439302,-500.0,0.00024368,2]
[364665005,1749191439312,-500.0,0.00024368,2]
[364665006,1749191439322,-500.0,0.00024368,2]
[364665007,1749191439331,-500.0,0.00024368,2]
[364665008,1749191439341,-500.0,0.00024368,2]
[364665009,1749191439351,-500.0,0.00024368,2]
[364665010,1749191439360,-500.0,0.00024368,2]
[364665011,1749191439370,-500.0,0.00024368,2]
[364665012,1749191439380,-500.0,0.00024368,2]
[364665013,1749191439390,-500.0,0.00024368,2]
[364665014,1749191439399,-500.0,0.00024368,2]
[364665015,1749191439410,-500.0,0.00024368,2]
[364665016,1749191439420,-500.0,0.00024368,2]
[364665017,1749191439430,-500.0,0.00024368,2]
[364665018,1749191439441,-500.0,0.00024368,2]
[364665019,1749191439451,-500.0,0.00024368,2]
[364665020,1749191439461,-500.0,0.00024368,2]
[364665021,1749191439470,-423.14062133,0.00024368,2]
[364665022,1749191439480,-500.0,0.00024368,2]
[364665023,1749191439489,-500.0,0.00024368,2]
[364665024,1749191439499,-500.0,0.00024368,2]
[364665025,1749191439508,-500.0,0.00024368,2]
[364665026,1749191439521,-500.0,0.00024368,2]
[364665027,1749191439531,-500.0,0.00024368,2]
[364665028,1749191439541,-500.0,0.00024368,2]
[364665029,1749191439551,-500.0,0.00024368,2]
[364665030,1749191439561,-500.0,0.00024368,2]
[364665031,1749191439571,-500.0,0.00024368,2]
[364665032,1749191439580,-500.0,0.00024368,2]
[364665033,1749191439590,-500.0,0.00024368,2]
[364665034,1749191439600,-500.0,0.00024368,2]
[364665035,1749191439611,-500.0,0.00024368,2]
[364665036,1749191439620,-500.0,0.00024368,2]
[364665037,1749191439631,-610.31,0.00024371,10]
[364665038,1749191439642,-440.0,0.00024372,2]
[364665039,1749191439652,-440.0,0.00024372,2]
[364665040,1749191439663,-154.84780573,0.00024376,2]
[364665041,1749191439673,-151.0,0.00024377,7]
[364665042,1749191439683,-151.721634,0.00024377,7]
[364665043,1749191439693,-151.0,0.00024377,7]
[364665044,1749191439703,-151.0,0.00024377,7]
[364665045,1749191439712,-151.0,0.00024377,7]
[364665046,1749191439722,-151.0,0.00024377,7]
[364665047,1749191439732,-151.669595,0.00024377,7]
[364665048,1749191439743,-151.0,0.00024377,7]
[364665049,1749191439752,-151.0,0.00024377,7]
[364665050,1749191439762,-152.965152,0.00024377,7]
[364665051,1749191439771,-476.90978527,0.0002438,2]
[364665052,1749191439783,-151.0,0.00024381,7]
[364665053,1749191439792,-151.0,0.00024381,7]
[364665054,1749191439802,-151.0,0.00024381,7]
[364665055,1749191439811,-1500.0,0.00024381,14]
[364665056,1749191439821,-1500.0,0.00024381,14]
[364665057,1749191439830,-1500.0,0.00024381,14]
[364665058,1749191439839,-1500.0,0.00024381,14]
[364665059,1749191439848,-1500.0,0.00024381,14]
[364665060,1749191439858,-1500.0,0.00024381,14]
[364665061,1749191439867,-1500.0,0.00024381,14]
[364665062,1749191439876,-1500.0,0.00024381,14]
[364665063,1749191439885,-1500.0,0.00024381,14]
[364665064,1749191439894,-151.0,0.00024381,7]
[364665065,1749191439904,-1500.0,0.00024381,14]
[364665066,1749191439913,-151.0,0.00024381,7]
[364665067,1749191439922,-1500.0,0.00024381,14]
[364665068,1749191439932,-1500.0,0.00024381,14]
[364665069,1749191439941,-1500.0,0.00024381,14]
[364665070,1749191439951,-151.0,0.00024381,7]
[364665071,1749191439961,-1500.0,0.00024381,14]
[364665072,1749191439970,-151.0,0.00024381,7]
[364665073,1749191439980,-151.0,0.00024381,7]
[364665074,1749191439990,-1500.0,0.00024381,14]
[364665075,1749191440000,-154.831013,0.00024381,7]
[364665076,1749191440010,-1500.0,0.00024381,14]
[364665077,1749191440020,-1374.864407,0.00024381,14]
[364665078,1749191440031,-128747.63470579,0.00024381,20]
[364665080,1749191440073,-432286.79980719,0.00024381,20]
[364665081,1749191440088,-415.045453,0.00024381,20]
[364665116,1749191443748,-7857.91045142,0.00024381,20]
[364665143,1749191444473,-400.0,0.00024381,20]
[364665275,1749191446685,-500.0,0.00024368,2]
[364665276,1749191446695,-500.0,0.00024368,2]
[364665277,1749191446705,-350.0,0.00024368,2]
[364665278,1749191446716,-500.0,0.00024368,2]
[364665279,1749191446727,-500.0,0.00024368,2]
[364665280,1749191446737,-500.0,0.00024368,2]
[364665281,1749191446747,-500.0,0.00024368,2]
[364665282,1749191446757,-500.0,0.00024368,2]
[364665283,1749191446767,-500.0,0.00024368,2]
[364665284,1749191446777,-500.0,0.00024368,2]
[364665285,1749191446787,-500.0,0.00024368,2]
[364665286,1749191446796,-117.16828566,0.00024368,2]
[364665287,1749191446840,-382.83171434,0.00024368,2]
[364665288,1749191446850,-996.46828566,0.00024381,20]
[364665307,1749191851678,-300.0,0.00019,2]
[364665308,1749191863202,-151.0,0.00019,2]
[364665309,1749191877783,-173.30026268,0.00019,2]
[364665310,1749191882996,300.0,0.00018999,2]
[364665311,1749191892970,-346.41986631,0.00019,2]
[364665312,1749191906589,-168.47691969,0.00019,2]
[364665313,1749191926071,-194.38308501,0.00019,2]
[364665314,1749191935934,231.33277102,0.0001843,2]
[364665317,1749192013927,194.38308501,0.000189,2]
[364665320,1749192188309,262.083567,0.00013699,2]
[364665322,1749192337127,-2076.25228395,0.00019,2]
[364665323,1749192338157,-150.20675691,0.00019,2]
[364665324,1749192367590,150.0,0.000189,2]
[364665326,1749192437083,-257.74581776,0.00019,2]
[364665327,1749192454119,-777.996559,0.00019,2]
[364665328,1749192454148,-4155.51906648,0.00019,2]
[364665329,1749192516542,203.0,0.00016,10]
[364665330,1749192538676,183.21345326,0.0001805,2]
[364665331,1749192557142,-15603.72046658,0.00019,2]
[364665332,1749192563317,-129.42240489,0.00019,2]
[364665333,1749192568089,-150.0,0.00019731,2]
[364665334,1749192568118,-73.62915278,0.000199,2]
[364665335,1749192571105,-126.18274311,0.000199,2]
[364665336,1749192571127,-38.11550658,0.00020187,2]
[364665359,1749192631956,-223.96806042,0.00020187,2]
[364665362,1749192631968,-76.03193958,0.00020194,2]
[364665364,1749192631981,-123.77995625,0.00020194,2]
[364665366,1749192631991,-150.0,0.00020287,2]
[364665368,1749192632001,-199.81189583,0.00020488,3]
[364665370,1749192632011,-199.81189583,0.00020782,4]
[364665372,1749192632021,-244.513475,0.00020894,2]
[364665374,1749192632030,-179.267968,0.00020984,2]
[364665376,1749192632040,-199.81189583,0.00021076,4]
[364665378,1749192632049,-199.81189583,0.00021371,5]
[364665380,1749192632059,-199.81189583,0.00021665,5]
[364665382,1749192632068,-1400.0,0.000219,2]
[364665384,1749192632078,-440.0,0.00021917,2]
[364665386,1749192632087,-440.0,0.00021917,2]
[364665387,1749192632097,-513.85908739,0.00021917,2]
[364665393,1749192632238,-425.76355203,0.00021917,2]
[364665394,1749192632251,-14.23644797,0.00021917,2]
[364665395,1749192632261,-410.0,0.00021917,2]
[364665396,1749192632270,-226.60851074,0.00021917,2]
[364665397,1749192632291,-213.39148926,0.00021917,2]
[364665398,1749192632302,-440.0,0.00021917,2]
[364665399,1749192632311,-440.0,0.00021917,2]
[364665401,1749192632320,-430.0,0.00021917,2]
[364665403,1749192632330,-440.0,0.00021917,2]
[364665405,1749192632339,-440.0,0.00021917,2]
[364665407,1749192632348,-199.81189583,0.00021959,6]
[364665408,1749192632358,-341.83170356,0.00021999,2]
[364665409,1749192632367,-206.59757773,0.00021999,2]
[364665410,1749192632377,-150.0,0.00022132,2]
[364665411,1749192632387,-420.0,0.00022191,2]
[364665412,1749192632397,-440.0,0.00022191,2]
[364665413,1749192632406,-440.0,0.00022191,2]
[364665414,1749192632416,-18.67849455,0.00022191,2]
[364665458,1749192639019,-421.32150545,0.00022191,2]
[364665460,1749192639031,-440.0,0.00022191,2]
[364665462,1749192639041,-430.0,0.00022191,2]
[364665464,1749192639050,-440.0,0.00022191,2]
[364665466,1749192639061,-199.81189583,0.00022253,6]
[364665468,1749192639070,-440.0,0.00022465,2]
[364665470,1749192639080,-440.0,0.00022465,2]
[364665472,1749192639090,-440.0,0.00022465,2]
[364665474,1749192639100,-440.0,0.00022465,2]
[364665476,1749192639110,-440.0,0.00022465,2]
[364665478,1749192639120,-199.81189583,0.00022547,7]
[364665480,1749192639130,-440.0,0.00022739,2]
[364665482,1749192639141,-440.0,0.00022739,2]
[364665484,1749192639151,-331.98882312,0.00022739,2]
[364665487,1749192639164,-108.01117688,0.00022739,2]
[364665490,1749192639173,-440.0,0.00022739,2]
[364665493,1749192639183,-179.173,0.00022821,2]
[364665496,1749192639192,-199.81189583,0.00022841,8]
[364665498,1749192639201,-3792.7666627,0.00022894,2]
[364665500,1749192639211,-440.0,0.00023013,2]
[364665502,1749192639221,-440.0,0.00023013,2]
[364665504,1749192639230,-440.0,0.00023013,2]
[364665506,1749192639239,-440.0,0.00023013,2]
[364665508,1749192639249,-500.0,0.00023055,2]
[364665510,1749192639258,-500.0,0.00023055,2]
[364665512,1749192639267,-500.0,0.00023055,2]
[364665514,1749192639278,-500.0,0.00023055,2]
[364665516,1749192639287,-500.0,0.00023055,2]
[364665518,1749192639296,-500.0,0.00023055,2]
[364665519,1749192639306,-500.0,0.00023055,2]
[364665521,1749192639315,-500.0,0.00023055,2]
[364665523,1749192639325,-373.98981618,0.00023055,2]
[364665525,1749192639335,-500.0,0.00023055,2]
[364665527,1749192639344,-500.0,0.00023055,2]
[364665529,1749192639353,-5000.0,0.00023055,2]
[364665531,1749192639363,-500.0,0.00023055,2]
[364665533,1749192639373,-500.0,0.00023055,2]
[364665535,1749192639383,-500.0,0.00023055,2]
[364665537,1749192639392,-500.0,0.00023055,2]
[364665539,1749192639402,-143.70235617,0.00023055,2]
[364665541,1749192639414,-356.29764383,0.00023055,2]
[364665542,1749192639423,-500.0,0.00023055,2]
[364665543,1749192639431,-500.0,0.00023055,2]
[364665544,1749192639441,-500.0,0.00023055,2]
[364665545,1749192639449,-500.0,0.00023055,2]
[364665547,1749192639458,-207.4,0.00023055,2]
[364665548,1749192639467,-199.81189583,0.00023135,8]
[364665549,1749192639476,-440.0,0.00023287,2]
[364665550,1749192639484,-161.848398,0.00023287,2]
[364665551,1749192639493,-440.0,0.00023287,2]
[364665552,1749192639502,-440.0,0.00023287,2]
[364665553,1749192639511,-199.81189583,0.00023429,9]
[364665554,1749192639520,-440.0,0.00023561,2]
[364665555,1749192639529,-440.0,0.00023561,2]
[364665556,1749192639536,-440.0,0.00023561,2]
[364665557,1749192639544,-199.81189583,0.00023724,9]
[364665558,1749192639550,-440.0,0.00023835,2]
[364665559,1749192639557,-440.0,0.00023835,2]
[364665560,1749192639563,-440.0,0.00023835,2]
[364665561,1749192639570,-209.769567,0.00023892,3]
[364665562,1749192639577,-150.0,0.00023976,2]
[364665563,1749192639584,-160.0,0.00023998,2]
[364665564,1749192639591,-199.81189583,0.00024018,10]
[364665565,1749192639599,-800.0,0.00024027,2]
[364665566,1749192639607,-218.78872,0.00024108,2]
[364665567,1749192639614,-440.0,0.00024109,2]
[364665568,1749192639622,-440.0,0.00024109,2]
[364665569,1749192639630,-440.0,0.00024109,2]
[364665570,1749192639637,-511.66,0.0002411,2]
[364665571,1749192639644,-400.0,0.00024149,2]
[364665572,1749192639651,-800.0,0.00024255,2]
[364665573,1749192639658,-2519.3797251,0.00024284,2]
[364665574,1749192639665,-2000.0,0.000243,2]
[364665575,1749192639672,-731.58,0.000243,2]
[364665576,1749192639678,-511.66,0.0002431,7]
[364665578,1749192639685,-199.81189583,0.00024312,10]
[364665579,1749192639694,-405.0,0.00024345,2]
[364665580,1749192639704,-150.0,0.00024345,2]
[364665582,1749192639713,-287.81,0.00024374,3]
[364665584,1749192639721,-863.47,0.00024374,3]
[364665585,1749192639729,-430.0,0.0002438,2]
[364665588,1749192639737,-440.0,0.0002438,2]
[364665590,1749192639746,-557.72128084,0.0002438,2]
[364665592,1749192639755,-440.0,0.0002438,2]
[364665594,1749192639764,-160.0,0.00024381,3]
[364665596,1749192639774,-333.83684969,0.00024383,2]
[364665598,1749192639783,-500.0,0.00024383,2]
[364665600,1749192639792,-500.0,0.00024383,2]
[364665602,1749192639801,-500.0,0.00024383,2]
[364665604,1749192639811,-500.0,0.00024383,2]
[364665606,1749192639820,-277.31406213,0.00024383,2]
[364665608,1749192639830,-500.0,0.00024383,2]
[364665610,1749192639839,-229.52673067,0.00024383,3]
[364665612,1749192639849,-160.0,0.00024383,2]
[364665613,1749192639859,-260.96,0.00024383,2]
[364665615,1749192639868,-440.0,0.00024383,2]
[364665617,1749192639878,-406333.71735078,0.00024384,20]
[364665620,1749192639893,-5179.47040953,0.00024384,20]
[364665643,1749192640121,-47393.66155413,0.00024384,20]
[364666169,1749192645066,-873.86251564,0.00024384,20]